Cogmind - Beta 14 @@@ ROGUE MODE // 2024.08.31 @ 17:09:02 Player: Wyvric Result: Destroyed by 3H-U28(R) with Subdweller Shrapnel Launcher Performance ------------- Evolutions (0) 0 Regions Visited (3) 600 Robots Destroyed (27) 135 Value Destroyed (628) 628 Prototype IDs (1) 20 Alien Tech Used (0) 0 Bonus (0) 0 TOTAL SCORE: 1383 Bonus ------- None Cogmind --------- Core Integrity 0/250 Matter 250/300 Energy 250/250 System Corruption 3% Temperature Cool (0) Movement Rolling (130) Ox2 Location -10/Subcaves Parts ------- > --- POWER (1) -------- Ion Engine > --- PROPULSION (2) --- Compact Wheel Compact Wheel > --- UTILITY (2) ------ Huge Storage Unit Seismic Detector > --- WEAPON (2) ------- Light Assault Rifle Mini Grenade Launcher > --- INVENTORY (25) --- Ion Engine Ion Engine Light Treads Light Treads Wheel Heat Sink High-capacity Matter Pod (160) Experimental Sensor Array Terrain Scanner Targeting Computer Medium Laser Light Assault Rifle Light Assault Rifle Mini Grenade Launcher Mini Grenade Launcher Mini Grenade Launcher Datajack Mining Laser Flail Flail Flail Flail Peak State ------------ > --- POWER ------------ Ion Engine > --- PROPULSION ------- Compact Wheel Compact Wheel > --- UTILITY ---------- Huge Storage Unit Experimental Sensor Array > --- WEAPON ----------- Medium Laser Light Assault Rifle > --- INVENTORY -------- Ion Engine Ion Engine Light Treads Light Treads Wheel Heat Sink High-capacity Matter Pod Terrain Scanner Seismic Detector Targeting Computer Light Assault Rifle Light Assault Rifle Mini Grenade Launcher Mini Grenade Launcher Mini Grenade Launcher Mini Grenade Launcher Datajack Mining Laser Flail Flail Flail Flail [Rating: 18] Favorites ----------- Power Ion Engine Engine Ion Engine Propulsion Aluminum Leg Leg Aluminum Leg Wheel Compact Wheel Utility Large Storage Unit Device Terrain Scanner Storage Large Storage Unit Weapon Medium Laser Energy Gun Medium Laser Ballistic Gun Assault Rifle Launcher Mini Grenade Launcher Special Weapon Mining Laser Build | -11 -10 -10 -10 ------- Run | Yrd Mat Min Sub Slots Evolved . | . . . . Power . | . . . . Propulsion . | . . . . Utility . | . . . . Weapon . | . . . . Parts Attached 28 | 6 15 5 2 Power 2 | 1 1 . . Engine 2 | 1 1 . . Core . | . . . . Reactor . | . . . . Propulsion 6 | 2 4 . . Treads . | . . . . Leg 4 | 2 2 . . Wheel 2 | . 2 . . Hover . | . . . . Flight . | . . . . Utility 9 | 1 5 2 1 Device 5 | . 2 2 1 Storage 4 | 1 3 . . Processor . | . . . . Hackware . | . . . . Protection . | . . . . Artifact . | . . . . Weapon 11 | 2 5 3 1 Energy Gun 5 | 1 3 1 . Energy Cannon . | . . . . Ballistic Gun 2 | 1 . 1 . Ballistic Cannon . | . . . . Launcher 3 | . 1 1 1 Special Weapon 1 | . 1 . . Impact Weapon . | . . . . Slashing Weapon . | . . . . Piercing Weapon . | . . . . Special Melee Weapon . | . . . . Unidentified Prototypes 1 | . . 1 . Parts Lost 3 | . 2 1 . Power 1 | . 1 . . Propulsion . | . . . . Utility . | . . . . Weapon 2 | . 1 1 . Highest Loss Streak 1 | . 1 1 . To Critical Strikes . | . . . . Average Slot Usage (%) 97 | . 96 100 100 Engine 13 | . 13 14 14 Leg 15 | . 23 . . Wheel 12 | . 4 28 28 Device 11 | . 10 14 14 Storage 14 | . 14 14 14 Energy Gun 22 | . 23 22 7 Ballistic Gun 3 | . 2 5 14 Peak Build Rating 18 | 6 10 18 11 Average Rating 8 | 4 7 9 10 On Entrance 6 | . 6 9 10 Naked Turns . | . . . . Heaviest Build 90 | 14 90 90 89 Greatest Support 32 | 20 32 32 32 Greatest Overweight (x) 2 | 1 2 2 2 Average Overweight (x) 1 | . 1 2 2 Largest Inventory Capacity 25 | 8 25 25 25 Average Capacity 18 | 7 15 25 25 Most Carried 22 | 8 20 22 22 Average Carried 15 | 5 13 21 22 Final Capacity 25 | 8 25 25 25 Final Carried 22 | 8 20 22 22 Class Distribution -------------------- 100% | Mutant Dominant Class ---------------- Mutant | -10/Materials Mutant | -10/Mines Mutant | -10/Subcaves Resources | -11 -10 -10 -10 ----------- Run | Yrd Mat Min Sub Matter Collected 749 | 237 267 245 . Remotely . | . . . . Salvage Created 848 | 31 592 203 22 Parts 45 | 4 27 14 . Haulers Intercepted . | . . . . Recyclers Shooed 1 | . . 1 . Parts Field Recycled . | . . . . Retrieved Matter . | . . . . Parts Self-Destructed . | . . . . Prevented . | . . . . Kills | -11 -10 -10 -10 ------- Run | Yrd Mat Min Sub Combat Hostiles Destroyed 23 | . 16 6 1 Guns 15 | . 12 3 . AOE 7 | . 3 3 1 Classes Destroyed 6 | 2 3 . 1 Worker 1 | 1 . . . Tunneler 1 | 1 . . . Recycler 2 | . 1 1 . Swarmer 9 | . 6 3 . Grunt 13 | . 10 3 . Subdweller 1 | . . . 1 Best Kill Streak 4 | 2 3 4 1 Combat Bots Only 3 | . 3 3 1 Max Kills in Single Turn 3 | 1 3 2 1 Gunslinging . | . . . . Exploded 3 | . 3 2 1 Melee . | . . . . Uniques/NPCs Destroyed . | . . . . Combat | -11 -10 -10 -10 -------- Run | Yrd Mat Min Sub Hostile Shots Fired 92 | . 71 17 4 Missed 29 | . 23 6 . Damage Taken 807 | . 541 96 170 Core 253 | . 81 23 149 Absorbed by Shields . | . . . . Core Remaining (%) 100 | 100 . . . Volleys Fired 80 | 8 55 14 3 Largest 2 | 2 2 2 1 Hottest 100 | 70 100 100 30 Shots Fired 148 | 16 103 26 3 Gun 136 | 16 96 24 . Cannon . | . . . . Launcher 6 | . 1 2 3 Special 6 | . 6 . . Kinetic 40 | 8 30 2 . Thermal 102 | 8 72 22 . Explosive 6 | . 1 2 3 Electromagnetic . | . . . . Robot Hit Streak 19 | 4 19 9 12 Robot Miss Streak 6 | 3 2 6 . Penetration Max . | . . . . Secondary Targets . | . . . . Shots Hit Robots 94 | 8 68 15 3 Core Hits 42 | 2 29 9 2 Critical Kills . | . . . . Critical Parts Destroyed 1 | . 1 . . Critical Strikes 11 | 1 9 1 . Burn 10 | 1 8 1 . Destroy 1 | . 1 . . Melee Attacks . | . . . . Impact . | . . . . Slashing . | . . . . Piercing . | . . . . Sneak Attacks . | . . . . Combat Hostiles . | . . . . Follow-up Attacks . | . . . . Damage Inflicted 1758 | 112 1001 353 292 Guns 1151 | 112 876 163 . Cannons . | . . . . Explosions 607 | . 125 190 292 Melee . | . . . . Ramming . | . . . . Kinetic 321 | 50 259 12 . Thermal 830 | 62 617 151 . Explosive 607 | . 125 190 292 Electromagnetic . | . . . . Impact . | . . . . Slashing . | . . . . Piercing . | . . . . Highest Corruption 3 | . 3 3 3 Average Corruption 2 | . 1 3 3 Corruption Purged . | . . . . Corruption Blocked . | . . . . Effects 13 | . 4 9 . Message Errors 1 | . . 1 . Energy Discharges 5 | . 1 4 . Data Loss (minor) 4 | . 1 3 . Data Loss (major) 3 | . 2 1 . Overload Shots . | . . . . Overflow Damage . | . . . . Projectiles . | . . . . Explosions . | . . . . Melee . | . . . . Knockbacks . | . . . . Impact . | . . . . Kinetic . | . . . . Secondary . | . . . . Self-Inflicted Damage . | . . . . Shots . | . . . . Rammed . | . . . . Targets Rammed 1 | . 1 . . Kicked 1 | . 1 . . Crushed . | . . . . Highest Temperature 192 | 45 192 156 . Average Temperature 53 | 18 58 52 . Received Heat Transfer 294 | . 264 30 . Siege Activations . | . . . . Robots Corrupted . | . . . . Combat Hostiles . | . . . . Parts Fried . | . . . . Impact Corruptions . | . . . . Robots Melted 1 | . 1 . . Combat Hostiles 1 | . 1 . . Parts Melted 6 | . 6 . . Heat Transferred 3145 | 259 2368 518 . Parts Sabotaged . | . . . . Parts Stolen . | . . . . Parts Stripped . | . . . . Power Chain Reactions . | . . . . Alert | -11 -10 -10 -10 ------- Run | Yrd Mat Min Sub Peak Influence 400 | 10 400 359 . Initial 156 | . 6 156 . Average 189 | 1 204 193 . Maximum Alert Level 2 | . 2 1 . Low Security (%) 54 | 100 44 66 . Level 1 44 | . 54 33 . Level 2 . | . . . . Level 3 . | . . . . Level 4 . | . . . . Level 5 . | . . . . High Security . | . . . . Max Security . | . . . . Squads Dispatched 5 | . 4 1 . Investigation 3 | . 2 1 . Extermination . | . . . . Reinforcement 2 | . 2 . . Assault . | . . . . Garrison . | . . . . Intercept . | . . . . Searches Triggered . | . . . . Construction Impeded . | . . . . Haulers Reinforced . | . . . . Active Scanning Responses . | . . . . Cargo Convoy Interrupts . | . . . . Stealth | -11 -10 -10 -10 --------- Run | Yrd Mat Min Sub Distress Signals 3 | . 2 1 . Communications Jammed . | . . . . Distress Signals . | . . . . Times Spotted 43 | . 32 9 2 Peak Tracking Total 5 | . 5 3 2 Tactical Retreats 5 | . 3 2 . Traps | -11 -10 -10 -10 ------- Run | Yrd Mat Min Sub Traps Triggered 2 | . 2 . . Indirectly . | . . . . Trap Hack Attempts . | . . . . Triggered . | . . . . Disarmed . | . . . . Reprogrammed . | . . . . Reused . | . . . . Traps Extracted . | . . . . Installed . | . . . . Triggered 1 | . . 1 . Machines | -11 -10 -10 -10 ---------- Run | Yrd Mat Min Sub Machines Disabled 1 | . 1 . . Max in Single Turn 1 | . 1 . . Machines Repaired . | . . . . Machines Dismantled . | . . . . Machines Sabotaged . | . . . . Overloaded Fab Kills . | . . . . Hacking | -11 -10 -10 -10 --------- Run | Yrd Mat Min Sub Machines Accessed 9 | . 8 1 . Terminals 7 | . 6 1 . Fabricators . | . . . . Repair Stations . | . . . . Recycling Units 2 | . 2 . . Scanalyzers . | . . . . Garrison Access . | . . . . Total Hacks 21 | . 18 3 . Successful 8 | . 7 1 . Failed 13 | . 11 2 . Catastrophic 1 | . 1 . . Database Lockouts . | . . . . Manual 17 | . 13 4 . Terminals 19 | . 16 3 . Fabricators . | . . . . Repair Stations . | . . . . Recycling Units 2 | . 2 . . Scanalyzers . | . . . . Garrison Access . | . . . . Terminal Hacks 6 | . 5 1 . Part Schematic 1 | . . 1 . Robot Analysis 3 | . 3 . . Branch Access Points 1 | . 1 . . Zone Layout 1 | . 1 . . Fabricator Hacks . | . . . . Repair Station Hacks . | . . . . Recycling Unit Hacks . | . . . . Scanalyzer . | . . . . Garrison Access Hacks . | . . . . Unauthorized Hacks 2 | . 2 . . Terminals . | . . . . Fabricators . | . . . . Repair Stations . | . . . . Recycling Units 2 | . 2 . . Tunnel 2 | . 2 . . Scanalyzers . | . . . . Garrison Access . | . . . . Data Cores Recovered . | . . . . Used . | . . . . Hacking Detections 7 | . 6 1 . Full Trace Events 1 | . . 1 . Feedback Events . | . . . . Feedback Blocked . | . . . . Robot Schematics Acquired . | . . . . Robots Built . | . . . . Authchips . | . . . . Time . | . . . . Total Robot Build Rating . | . . . . Part Schematics Acquired 1 | . . 1 . Parts Built . | . . . . Authchips . | . . . . Time . | . . . . Total Part Build Rating . | . . . . Parts Repaired . | . . . . Time . | . . . . Parts Recycled . | . . . . Recycled Matter . | . . . . Retrieved Matter . | . . . . Retrieved Components . | . . . . Parts Scanalyzed . | . . . . Part Schematics Acquired . | . . . . Parts Damaged . | . . . . Bothacking | -11 -10 -10 -10 ------------ Run | Yrd Mat Min Sub Used RIF Installer . | . . . . Robots Hacked . | . . . . Non-combat . | . . . . Combat . | . . . . Robot Hacks Applied . | . . . . Relay Couplers Released . | . . . . Fabnet Peak Effective % . | . . . . Robots Rewired . | . . . . Allies Hacked . | . . . . Hacks Repelled . | . . . . Allies | -11 -10 -10 -10 -------- Run | Yrd Mat Min Sub Total Allies . | . . . . Largest Group . | . . . . Highest-Rated Group . | . . . . Highest-Rated Ally . | . . . . Total Orders . | . . . . Ally Attacks . | . . . . Total Damage . | . . . . Kills . | . . . . Allies Corrupted . | . . . . Allies Melted . | . . . . Intel | -11 -10 -10 -10 ------- Run | Yrd Mat Min Sub Robot Analysis Total 3 | . 3 . . Derelict Logs Recovered 3 | . . 3 . Drone Launches . | . . . . Drone Recoveries . | . . . . Exploration | -11 -10 -10 -10 ------------- Run | Yrd Mat Min Sub Turns Passed 1921 | 112 1197 579 33 Spaces Moved 1016 | 59 531 408 18 Core 9 | 9 . . . Treads . | . . . . Legs 453 | 50 403 . . Wheels 554 | . 128 408 18 Hover . | . . . . Flight . | . . . . Fastest Speed 50 | 50 120 130 130 Average Speed 147 | 112 166 130 130 Slowest Speed 190 | 120 190 130 130 Overloaded Moves . | . . . . Propulsion Burnouts . | . . . . Robots Hopped . | . . . . Cave-ins Triggered . | . . . . Exploration Rate (%) 42 | 5 88 74 3 Regions Visited 3 Branch Regions 2 Pre-discovered Areas 3 | . 2 1 . Known Exits Taken 1 | . 1 . . Unknown Exits Taken 2 | 1 . 1 . Scrap Searched 1 | . . 1 . Spaces Dug 6 | . 6 . . Terrain Destroyed 49 | . 16 21 12 Melee . | . . . . Projectile 6 | . 6 . . AOE 43 | . 10 21 12 Terrain Rammed . | . . . . Walls Destroyed . | . . . . Machines Disabled . | . . . . Actions | -11 -10 -10 -10 --------- Run | Yrd Mat Min Sub Total 1267 | 86 729 429 23 Wait 101 | 4 97 . . Move 1013 | 58 530 407 18 Hop . | . . . . Pick Up 35 | 10 22 3 . Fast Attach 5 | 4 1 . . Attach 6 | 2 3 1 . Detach . | . . . . Swap 17 | . 11 4 2 Drop 9 | . 9 . . Fire 80 | 8 55 14 3 Melee . | . . . . Ram . | . . . . Kick 1 | . 1 . . Crush . | . . . . Escape Stasis . | . . . . Rewire . | . . . . Trap . | . . . . Miscellaneous . | . . . . Route ------- -11/Scrapyard -10/Materials (discovered 3 exits: [*Mat x2] / *Min) -10/Mines (discovered 2 exits: [*Mat] / [*Sub]) -10/Subcaves History --------- Turn | Location | Event 6 | -11/Scrapyard | Discovered new exit (range 15) 113 | -11/Scrapyard | Entered Materials 170 | -10/Materials | Identified exit to Mines 310 | -10/Materials | Build established: Mutant 450 | -10/Materials | Discovered new exit (range 11) 731 | -10/Materials | Discovered new exit (range 16) 1310 | -10/Materials | Entered Mines 1326 | -10/Mines | Discovered new exit (range 7) 1328 | -10/Mines | Met a Derelict bent on vengeance 1388 | -10/Mines | Learned location of Storage (-9) 1690 | -10/Mines | Learned Materials terminal intel 1698 | -10/Mines | Found a damaged Exp. Sensor Array with a note attached 1701 | -10/Mines | Found Prototype Device 1702 | -10/Mines | Identified Exp. Sensor Array 1771 | -10/Mines | Discovered new exit (range 8) 1889 | -10/Mines | Entered Subcaves 1917 | -10/Subcaves | Core integrity fell below 50% 1919 | -10/Subcaves | Core integrity fell below 20% 1922 | -10/Subcaves | Destroyed by 3H-U28(R) with Subdweller Shrapnel Launcher Last Messages --------------- 01701_ U-05 Engineer lays Concrete. 01701_ Acquired Prototype Device. 01702_ Identified Exp. Sensor Array. 01741_ U-05 Engineer builds a Wall. 01745_ System corrupted: Substantial component data lost. 01747_ U-05 Engineer builds a Wall. 01771_ EXIT=FOUND 01777_ System corrupted: Energy discharge (-72). 01783_ U-05 Engineer lays Concrete. 01810_ R-06 Scavenger collects Flight Unit. 01822_ Acquired 30 matter. 01825_ Acquired 80 matter. 01832_ Acquired derelict log, extracted data. Data stored: Storage entrances (x1). 01888_ K-01 Serf collects debris. LOCATION=UNKNOWN AMBIENT_HEAT=-10 GOAL=ESCAPE 01920_ X2-7A6(R) destroyed. Map ----- +----------------------------------------------------+ | ?????????????????????????????????????????????????? | | ?????????????????????????????????????????????????? | | ?????????????????????????????????????????????????? | | ?????????????????????????????????????????????????? | | ????????????????? #???????????????????????????? | | ??????????????? # ?????????????????????????? | | ??????????????? # ????????????????????????? | | ???????????????# ?????????????????????????? | | ???????????????# ?????????????????????????? | | ??????????????? ?????????????????????????? | | ???????????????# ??????????????????????????? | | ???????????????# #?#####???????????????????? | | ???????????????# # # # ??????????????? | | ???????????????# ??????????????? | | ???????????????? ? ?????????????? | | ????????????????# # ? ??????????????? | | ????????????????? ## ???????????????? | | ????????????????## % ????????????????? | | ????????????????# ## R #????????????????? | | ?????????????????# ### # #????????????????? | | ????????????????## ## #????????????????? | | ????????????????# ; #####????????????? | | ????????????????## # ###??????????? | | ?????????????????# #??????????? | | ?????????????????#### #???????????? | | ????????????????????# @ ;# #????????????? | | ????????????????????# #???? ##????????????? | | ???????????????????# #??????????????????? | | ???????????????????## #??????????????????? | | ????????????????????# ; ##??????????????????? | | ????????????????????##########???????????????????? | | ?????????????????????????????????????????????????? | | ?????????????????????????????????????????????????? | | ?????????????????????????????????????????????????? | | ?????????????????????????????????????????????????? | | ?????????????????????????????????????????????????? | | ?????????????????????????????????????????????????? | | ?????????????????????????????????????????????????? | | ?????????????????????????????????????????????????? | | ?????????????????????????????????????????????????? | | ?????????????????????????????????????????????????? | | ?????????????????????????????????????????????????? | | ?????????????????????????????????????????????????? | | ?????????????????????????????????????????????????? | | ?????????????????????????????????????????????????? | | ?????????????????????????????????????????????????? | | ?????????????????????????????????????????????????? | | ?????????????????????????????????????????????????? | | ?????????????????????????????????????????????????? | | ?????????????????????????????????????????????????? | +----------------------------------------------------+ Best States ------------- Heat Dissipation 35 Energy Generation 10 Energy Capacity 250 Matter Stores 300 Matter Capacity 300 Sight Range 16 Terrain Scan Range 14 Terrain Scan Density 10 Evasion (%) 55 Item Schematics ----------------- Huge Storage Unit | -10/Mines | Hacked Robot Schematics ------------------ None Fabricated ------------ Nothing Alien Tech Used ----------------- None Achievements -------------- None Challenges ------------ None Game ------ Seed GreatShadingFlamer Manual? 0 Play Time 00:14:46 Cumulative 483.5 hours Start 2024.08.31 @ 16:22:32 End 2024.08.31 @ 17:09:02 Sessions 1 Manual Loads 0 Difficulty Rogue Special Mode None Game No. 115 Rogue 115 Adventurer 0 Explorer 0 Win Type - Total 28 Types 9/3/7/1/1/1/4/1/1 Lore% 54 Gallery% 81 Achievement% 75 Wizard Run 0 Options --------- Layout 1 ASCII 0 Keyboard 0 Movement Mouse Keybinds 0 Fullscreen 1 Font 24/Smallcaps Map View 50x35 Zoom Use 0% Tactical HUD 1 Map Filters NONE Filters NONE Steam 1 RUN: 6e4150ea-2d8b-469a-8aaf-1cfad4e6ed51